bitfinex-derivatives/quotes_BNBF0:USTF0_20250309
["timestamp","ask_amount","ask_price","bid_price","bid_amount"]
[1741525454843,0.3007077,579.14,578.07,0.34597886]
[1741525455043,0.3007077,579.14,578.08,0.28827407]
[1741525455242,0.3007077,579.14,578.09,0.34596689]
[1741525455444,0.3007077,579.14,578.1,0.28827407]
[1741525456145,0.3007077,579.14,578.11,0.34595492]
[1741525456344,0.31757607,579.13,578.12,0.28827407]
[1741525456543,0.31757607,579.13,578.13,0.34594295]
[1741525456744,0.31757607,579.13,578.14,0.28827407]
[1741525457346,0.515,579.12,578.14,0.28827407]
[1741525457543,0.31757607,579.11,578.14,0.28827407]
[1741525459544,0.515,579.12,578.13,0.34594295]
[1741525459750,0.31757896,579.11,578.14,0.28820882]
[1741525460951,0.30076748,579.1,578.14,0.28820882]
[1741525461244,0.30076748,579.1,578.13,0.34594295]
[1741525461450,0.30076748,579.1,578.14,0.28826802]
[1741525468655,0.30076748,579.1,578.13,0.34594295]
[1741525468956,0.30076748,579.1,578.15,0.448]
[1741525469556,0.515,579.12,578.15,0.448]
[1741525469759,0.30075188,579.09,578.15,0.448]
[1741525472561,0.515,579.12,578.15,0.448]
[1741525472960,0.30077137,579.08,578.15,0.448]
[1741525474461,0.30077137,579.08,578.16,0.28833296]
[1741525474661,0.31760139,579.07,578.16,0.28833296]
[1741525474860,0.31760139,579.07,578.15,0.448]
[1741525474861,0.31759971,579.06,578.17,0.2883428]
[1741525475061,0.31759971,579.07,578.16,0.2883428]
[1741525475360,0.31759971,579.06,578.17,0.2883428]
[1741525475562,0.515,579.12,578.16,0.2883428]
[1741525475763,0.31760121,579.11,578.17,0.2883428]
[1741525476061,0.31760121,579.11,578.18,0.2883428]
[1741525476260,0.31760121,579.11,578.16,0.2883428]
[1741525477363,0.30076748,579.1,578.16,0.2883428]
[1741525477559,0.31760121,579.09,578.16,0.2883428]
[1741525477864,0.3175944,579.08,578.17,0.28830145]
[1741525478065,0.3175944,579.09,578.16,0.28830145]
[1741525478368,0.31760378,579.08,578.17,0.28830145]
[1741525478562,0.31760378,579.09,578.16,0.28830145]
[1741525478762,0.515,579.12,578.17,0.28830145]
[1741525478763,0.31758903,579.11,578.17,0.28830145]
[1741525478961,0.30077008,579.07,578.16,0.28830145]
[1741525481565,0.31761173,579.06,578.16,0.28830145]
[1741525481766,0.31761173,579.11,578.16,0.28830145]
[1741525481966,0.30076748,579.06,578.16,0.28830145]
[1741525482770,0.30076748,579.06,578.13,0.34594295]
[1741525484470,0.34533367,579.15,578.13,0.34594295]
[1741525484673,0.31761144,579.14,578.13,0.34594295]
[1741525484870,0.61838931,579.14,578.13,0.34594295]
[1741525485070,0.31761144,579.13,578.13,0.34594295]
[1741525485571,0.362,579.12,578.13,0.34594295]
[1741525485771,0.31761144,579.11,578.13,0.34594295]
[1741525486071,0.362,579.12,578.14,0.409]
[1741525487973,0.30076748,579.11,578.14,0.409]
[1741525488675,0.31766318,579.1,578.14,0.409]
[1741525490574,0.362,579.12,578.14,0.409]
[1741525490774,0.61838674,579.09,578.15,0.28827777]
[1741525490974,0.31761796,579.08,578.15,0.28827777]
[1741525492374,0.31761796,579.08,578.14,0.409]
[1741525492779,0.31761796,579.08,578.15,0.28830387]
[1741525493675,0.31761796,579.08,578.14,0.409]
[1741525493874,0.61838804,579.07,578.14,0.409]
[1741525494081,0.31761796,579.06,578.14,0.409]
[1741525494282,0.30077008,579.07,578.14,0.409]
[1741525494479,0.31761689,579.06,578.15,0.28827614]
[1741525496782,0.30077267,579.05,578.15,0.28827614]
[1741525499189,0.30077267,579.05,578.14,0.409]
[1741525499389,0.31762641,579.04,578.14,0.409]
[1741525502682,0.30081037,579.03,578.14,0.409]
[1741525502989,0.31762641,579.02,578.14,0.409]
[1741525504791,0.31762641,579.02,578.15,0.2883298]
[1741525505893,0.30081167,579.01,578.15,0.2883298]
[1741525506091,0.31762641,579.0,578.15,0.2883298]
[1741525508891,0.61844068,578.99,578.15,0.2883298]
[1741525509095,0.31762641,578.98,578.15,0.2883298]
[1741525509892,0.336,578.97,578.15,0.2883298]
[1741525510089,0.31762641,578.96,578.15,0.2883298]
[1741525510890,0.31762641,578.96,578.14,0.409]
[1741525511089,0.31762641,578.96,578.15,0.28840322]
[1741525511991,0.30081947,578.95,578.15,0.28840322]
[1741525512195,0.30081947,578.95,578.13,0.34594295]
[1741525512196,0.31762641,578.94,578.13,0.34594295]
[1741525515192,0.31762641,578.94,578.14,0.488]
[1741525515796,0.31766158,578.93,578.14,0.488]
[1741525515997,0.30081947,578.95,578.14,0.488]
[1741525516295,0.31766376,578.94,578.14,0.488]
[1741525517490,0.336,578.97,578.14,0.488]
[1741525517692,0.30082337,578.93,578.14,0.488]
[1741525520495,0.336,578.97,578.14,0.488]
[1741525520696,0.31765384,578.96,578.14,0.488]
[1741525520899,0.30082077,578.92,578.14,0.488]
[1741525521801,0.31765923,578.91,578.14,0.488]
[1741525522401,0.30082077,578.92,578.14,0.488]
[1741525523502,1.27865714,579.14,578.14,0.488]
[1741525523703,0.30087019,578.91,578.14,0.488]
[1741525524013,1.27865714,579.14,578.14,0.488]
[1741525524306,0.499,578.9,578.14,0.488]
[1741525525408,0.30087019,578.89,578.14,0.488]
[1741525526607,0.499,578.9,578.14,0.488]
[1741525526905,0.30091051,578.88,578.14,0.488]
[1741525527614,0.31776448,578.87,578.14,0.488]
[1741525528506,0.31780087,578.86,578.14,0.488]
[1741525529012,0.31780087,578.85,578.14,0.488]
[1741525529210,0.31780087,578.87,578.14,0.488]
[1741525529810,0.30092092,578.86,578.14,0.488]
[1741525530513,0.31780248,578.85,578.14,0.488]
[1741525533809,0.30092092,578.86,578.14,0.488]
[1741525534018,0.31779683,578.85,578.14,0.488]
[1741525535712,0.31779683,578.84,578.14,0.488]
[1741525536018,0.31780073,578.83,578.14,0.488]
[1741525541813,0.30098078,578.82,578.14,0.488]
[1741525542017,0.31780073,578.81,578.14,0.488]
[1741525543520,0.3455425,578.8,578.14,0.488]
[1741525543719,0.31780073,578.79,578.14,0.488]
[1741525543916,0.34555444,578.78,578.14,0.488]
[1741525544119,0.31780073,578.77,578.14,0.488]
[1741525544522,0.85780073,578.77,578.14,0.488]
[1741525544822,0.64660835,578.76,578.14,0.488]
[1741525545019,0.66346986,578.75,578.14,0.488]
[1741525545324,0.31789751,578.74,578.14,0.488]
[1741525545725,0.66347583,578.74,578.14,0.488]
[1741525545921,0.31789751,578.73,578.14,0.488]
[1741525547723,0.30104457,578.72,578.14,0.488]
[1741525547924,0.31789751,578.71,578.14,0.488]
[1741525549828,0.30104457,578.72,578.14,0.488]
[1741525550028,0.31789243,578.71,578.14,0.488]
[1741525550529,0.31789417,578.7,578.14,0.488]
[1741525550924,0.31789417,578.69,578.14,0.488]
[1741525551327,0.31789417,578.68,578.14,0.488]
[1741525551728,0.31789417,578.67,578.14,0.488]
[1741525551924,0.31789417,578.71,578.14,0.488]
[1741525552524,0.31789284,578.7,578.14,0.488]
[1741525552724,0.31789284,578.71,578.14,0.488]
[1741525552925,0.30104457,578.72,578.14,0.488]
[1741525552926,0.31789284,578.7,578.14,0.488]
[1741525553225,0.31789284,578.69,578.14,0.488]
[1741525553430,0.30104457,578.72,578.14,0.488]
[1741525553631,0.31786585,578.71,578.14,0.488]
[1741525556727,0.31786585,578.73,578.14,0.488]
[1741525556928,0.30100031,578.7,578.14,0.488]
[1741525562538,0.34557832,578.74,578.14,0.488]
[1741525562943,0.3009938,578.69,578.14,0.488]
[1741525567545,0.8159938,578.69,578.14,0.488]
[1741525568745,0.30098599,578.68,578.14,0.488]
[1741525572342,0.30098599,578.68,577.64,0.30098599]
[1741525572542,0.30098599,578.68,577.65,0.63511935]
[1741525572743,0.30098599,578.68,577.66,0.28888894]
[1741525573847,0.30098599,578.68,577.67,0.34621842]
[1741525574048,0.30098599,578.68,577.68,0.28888894]
[1741525574247,0.30098599,578.68,577.69,0.34620644]
[1741525574446,0.30098599,578.68,577.7,0.28888894]
[1741525574747,0.515,578.69,577.71,0.34619445]
[1741525574948,0.515,578.69,577.72,0.28888894]
[1741525575247,0.515,578.69,577.73,0.34618247]
[1741525575447,0.515,578.69,577.74,0.28888894]
[1741525575848,0.81596126,578.69,577.74,0.28888894]
[1741525576048,0.31782198,578.68,577.74,0.28888894]
[1741525576748,0.81596126,578.69,577.74,0.28888894]
[1741525577044,0.81596126,578.69,577.73,0.86218247]
[1741525577646,0.515,578.69,577.73,0.86218247]
[1741525577947,0.81596647,578.69,577.73,0.86218247]
[1741525583557,0.515,578.69,577.73,0.86218247]
[1741525583748,0.30097688,578.68,577.73,0.86218247]
[1741525586553,0.34557832,578.74,577.73,0.86218247]
[1741525586749,0.30097037,578.67,577.73,0.86218247]
[1741525587054,0.34557832,578.74,577.73,0.86218247]
[1741525587055,0.34557832,578.74,577.74,0.28911101]
[1741525587255,0.49,578.66,577.74,0.28911101]
[1741525587754,0.49,578.66,577.73,0.86218247]
[1741525588853,0.30097037,578.65,577.73,0.86218247]
[1741525589651,0.49,578.66,577.73,0.86218247]
[1741525589849,0.30098078,578.65,577.73,0.86218247]
[1741525592554,0.49,578.66,577.73,0.86218247]
[1741525592957,0.30097037,578.65,577.73,0.86218247]
[1741525595561,0.49,578.66,577.73,0.86218247]
[1741525595856,0.30098339,578.64,577.73,0.86218247]
[1741525597359,0.30098339,578.64,577.73,0.34618247]
[1741525598159,0.30098339,578.64,577.74,0.28912065]
[1741525598356,0.30098339,578.64,577.73,0.34618247]
[1741525598661,0.34557832,578.74,577.73,0.34618247]
[1741525598861,0.30098208,578.64,577.73,0.34618247]
[1741525599060,0.34557832,578.74,577.73,0.34618247]
[1741525599863,0.30093914,578.73,577.74,0.28910441]
[1741525600564,0.30093914,578.73,577.75,0.529]
[1741525601460,0.508,578.72,577.75,0.529]
[1741525601658,0.508,578.72,577.76,0.28909476]
[1741525601857,0.30097167,578.71,577.76,0.28909476]
[1741525604665,0.508,578.72,577.76,0.28909476]
[1741525604859,0.30097037,578.7,577.76,0.28909476]
[1741525605063,0.30097037,578.7,577.75,0.529]
[1741525605962,0.30097037,578.7,577.76,0.28918104]
[1741525607561,0.508,578.72,577.76,0.28918104]
[1741525607764,0.3178134,578.71,577.76,0.28918104]
[1741525607966,0.61878117,578.71,577.76,0.28918104]
[1741525608162,0.3178134,578.7,577.76,0.28918104]
[1741525610272,0.31782283,578.69,577.77,0.28922034]
[1741525610464,0.31782283,578.7,577.76,0.28922034]
[1741525610668,0.31782283,578.68,577.78,0.28922034]
[1741525610866,0.31782283,578.67,577.79,0.28922034]
[1741525611069,0.31782283,578.67,577.76,0.28922034]
[1741525611269,0.31782283,578.67,577.77,0.28922034]
[1741525611472,0.31782283,578.67,577.76,0.28922034]
[1741525611673,0.31782283,578.67,577.77,0.28922034]
[1741525611866,0.31782283,578.67,577.78,0.28922034]
[1741525612069,0.31782283,578.67,577.76,0.28922034]
[1741525612271,0.31782283,578.67,577.77,0.28922034]
[1741525612464,0.31782283,578.67,577.76,0.28922034]
[1741525613773,0.30097558,578.66,577.76,0.28922034]
[1741525614276,0.31782283,578.65,577.76,0.28922034]
[1741525616174,0.30097558,578.66,577.76,0.28922034]
[1741525616375,0.31782008,578.65,577.77,0.28930447]
[1741525616576,0.31782008,578.65,577.76,0.28930447]
[1741525616778,0.31782008,578.71,577.76,0.28930447]
[1741525616969,0.30097818,578.65,577.76,0.28930447]
[1741525618277,0.30097818,578.65,577.75,0.529]
[1741525618572,0.30097818,578.65,577.76,0.28931411]
[1741525619575,0.508,578.72,577.76,0.28931411]
[1741525619778,0.30096256,578.68,577.76,0.28931411]
[1741525619977,0.30096256,578.68,577.75,0.529]
[1741525620178,0.30096256,578.68,577.76,0.28928255]
[1741525622177,0.30096256,578.68,577.77,0.2892759]
[1741525622377,0.30096256,578.68,577.78,0.2892759]
[1741525622573,0.508,578.72,577.76,0.2892759]
[1741525622878,0.508,578.72,577.75,0.529]
[1741525622879,0.61874746,578.71,577.77,0.2892759]
[1741525623078,0.61874746,578.71,577.75,0.529]
[1741525623079,0.31779271,578.7,577.76,0.2892759]
[1741525623278,0.31779271,578.7,577.77,0.2892759]
[1741525623475,0.31779271,578.7,577.78,0.2892759]
[1741525623679,0.31779271,578.7,577.76,0.2892759]
[1741525623874,0.31779271,578.7,577.77,0.2892759]
[1741525624073,0.31779271,578.7,577.78,0.2892759]
[1741525624279,0.31779271,578.7,577.79,0.2892759]
[1741525624481,0.30095475,578.71,577.8,0.2892759]
[1741525624680,0.30095475,578.71,577.76,0.2892759]
[1741525624979,0.30095475,578.71,577.75,0.529]
[1741525625181,0.30095475,578.71,577.76,0.28931593]
[1741525625678,0.508,578.72,577.76,0.28931593]
[1741525626079,0.30095475,578.71,577.76,0.28931593]
[1741525628583,0.508,578.72,577.76,0.28931593]
[1741525628784,0.508,578.72,577.77,0.28936924]
[1741525628984,0.30095475,578.71,577.76,0.28936924]
[1741525631684,0.34557832,578.74,577.76,0.28936924]
[1741525631881,0.30095475,578.71,577.76,0.28936924]
[1741525634386,0.31779911,578.7,577.76,0.28936924]
[1741525634788,0.31779911,578.69,577.76,0.28936924]
[1741525637885,0.30096516,578.68,577.76,0.28936924]
[1741525638191,0.31779911,578.67,577.76,0.28936924]
[1741525639890,0.30096516,578.68,577.77,0.28919927]
[1741525640191,0.3177927,578.67,577.74,0.28919927]
[1741525640495,0.3177927,578.67,577.75,0.28919927]
[1741525640694,0.3177927,578.67,577.74,0.28919927]
[1741525641693,0.3177927,578.67,577.73,0.34618247]
[1741525641694,0.31779366,578.66,577.75,0.28920758]
[1741525641888,0.31779366,578.67,577.74,0.28920758]
[1741525643090,0.31779366,578.67,577.75,0.386]
[1741525643394,0.31779366,578.67,577.76,0.28920758]
[1741525643786,0.31779366,578.69,577.76,0.28920758]
[1741525643999,0.31779366,578.66,577.76,0.28920758]
[1741525644191,0.30096777,578.68,577.76,0.28920758]
[1741525644395,0.31779303,578.67,577.76,0.28920758]
[1741525647191,0.31780551,578.66,577.77,0.28932709]
[1741525647395,0.31780551,578.65,577.78,0.28932709]
[1741525647593,0.31780551,578.67,577.76,0.28932709]
[1741525647793,0.31780551,578.66,577.77,0.28932709]
[1741525647997,0.31780551,578.67,577.76,0.28932709]
[1741525648201,0.31780551,578.66,577.77,0.28932709]
[1741525648399,0.31780551,578.67,577.76,0.28932709]
[1741525648597,0.31780551,578.66,577.77,0.28932709]
[1741525648800,0.30096777,578.68,577.75,0.386]
[1741525648992,0.31780073,578.67,577.76,0.28928855]
[1741525649998,0.61878151,578.66,577.76,0.28928855]
[1741525650199,0.31780073,578.65,577.76,0.28928855]
[1741525650400,0.31780073,578.65,577.75,0.386]
[1741525652700,0.31780073,578.69,577.75,0.386]
[1741525652898,0.30102244,578.64,577.75,0.386]
[1741525653102,0.31780073,578.63,577.75,0.386]
[1741525655913,0.30103025,578.62,577.75,0.386]
[1741525656305,0.31780073,578.61,577.75,0.386]
[1741525658910,0.30103285,578.6,577.75,0.386]
[1741525659109,0.31780073,578.59,577.75,0.386]
[1741525659912,0.30103285,578.6,577.75,0.386]
[1741525660106,0.3179023,578.59,577.75,0.386]
[1741525661814,0.3179023,578.73,577.75,0.386]
[1741525662014,0.30103546,578.58,577.75,0.386]
[1741525662215,0.3179023,578.57,577.73,0.34618247]
[1741525662410,0.3179023,578.72,577.73,0.34618247]
[1741525662611,0.3179023,578.71,577.73,0.34618247]
[1741525662808,0.34558429,578.73,577.73,0.34618247]
[1741525662809,0.3179023,578.72,577.73,0.34618247]
[1741525663109,0.70204978,578.7,577.73,0.34618247]
[1741525663507,0.3179023,578.69,577.73,0.34618247]
[1741525664411,0.34561415,578.68,577.2,1.28526279]
[1741525664614,0.3179023,578.67,577.4,0.30107713]
[1741525664814,0.3179023,578.67,577.41,0.28985817]
[1741525665013,0.3179023,578.67,577.42,0.28985817]
[1741525665316,0.64669128,578.68,577.42,0.427]
[1741525665615,0.31795291,578.67,577.43,0.28990387]
[1741525665815,0.3456261,578.66,577.43,0.28990387]
[1741525666315,0.31795291,578.65,577.43,0.28990387]
[1741525666516,0.31795291,578.65,577.42,0.427]
[1741525666715,0.34563804,578.64,577.42,0.427]
[1741525666915,0.31795291,578.63,577.42,0.427]
[1741525668211,0.31795291,578.63,577.43,0.28988368]
[1741525670419,0.31794831,578.62,577.44,0.28988583]
[1741525670620,0.31794831,578.63,577.42,0.427]
[1741525670817,0.61904237,578.61,577.42,0.427]
[1741525671016,0.31794831,578.6,577.42,0.427]
[1741525673715,0.31794831,578.63,577.42,0.427]
[1741525674022,0.30110057,578.59,577.42,0.427]
[1741525674221,0.31794831,578.58,577.42,0.427]
[1741525676521,0.31794831,578.58,577.43,0.28997437]
[1741525678326,0.31796638,578.57,577.44,0.28998364]
[1741525678625,0.66365222,578.56,577.45,0.28998364]
[1741525678824,0.66365819,578.55,577.43,0.29001341]
[1741525679031,0.31796638,578.54,577.42,0.427]
[1741525679330,0.34569181,578.55,577.42,0.427]
[1741525679731,0.31797706,578.54,577.42,0.427]
[1741525680030,0.30113835,578.54,577.42,0.427]
[1741525680634,0.31798794,578.53,577.42,0.427]
[1741525682536,0.34570974,578.52,577.42,0.427]
[1741525682834,0.31798794,578.51,577.42,0.427]
[1741525683133,0.34572169,578.5,577.42,0.427]
[1741525683333,0.31798794,578.49,577.42,0.427]
[1741525683533,0.34573364,578.48,577.42,0.427]
[1741525683730,0.31798794,578.47,577.42,0.427]
[1741525683930,0.3457456,578.46,577.42,0.427]
[1741525684132,0.31798794,578.45,577.42,0.427]
[1741525684333,0.34575755,578.44,577.42,0.427]
[1741525684530,0.31798794,578.43,577.42,0.427]
[1741525684931,0.34575755,578.44,577.42,0.427]
[1741525685131,0.31805898,578.43,577.42,0.427]
[1741525685833,0.31805898,578.43,577.43,0.29009065]
[1741525688835,0.30114357,578.42,577.43,0.29009065]
[1741525689035,0.31805898,578.41,577.43,0.29009065]
[1741525691838,0.30114617,578.4,577.43,0.29009065]
[1741525692239,0.31805898,578.39,577.43,0.29009065]
[1741525693342,0.468,578.38,577.43,0.29009065]
[1741525693536,0.31805898,578.37,577.43,0.29009065]
[1741525694837,0.31805898,578.37,577.42,0.427]
[1741525697945,0.30120352,578.36,577.42,0.427]
[1741525698146,0.31805898,578.35,577.42,0.427]
[1741525700748,0.31805898,578.34,577.42,0.427]
[1741525701044,0.31805898,578.33,577.42,0.427]
[1741525703147,0.30120612,578.34,577.42,0.427]
[1741525703348,0.31804336,578.33,577.42,0.427]
[1741525703948,0.61925209,578.32,577.42,0.427]
[1741525704348,0.31804336,578.31,577.42,0.427]
[1741525706940,0.6192547,578.3,577.42,0.427]
[1741525707145,0.31804336,578.29,577.42,0.427]
[1741525707545,0.30121134,578.3,577.42,0.427]
[1741525707742,0.31805579,578.29,577.42,0.427]
[1741525709945,0.61926973,578.28,577.42,0.427]
[1741525710243,0.31805579,578.27,577.42,0.427]
[1741525712449,0.31807509,578.26,577.42,0.427]
[1741525712644,0.31807509,578.27,577.42,0.427]
[1741525712850,0.31807509,578.26,577.42,0.427]
[1741525713046,0.31807509,578.27,577.42,0.427]
[1741525713246,0.31807509,578.26,577.42,0.427]
[1741525713444,0.31807509,578.27,577.42,0.427]
[1741525713746,0.31807509,578.26,577.42,0.427]
[1741525713951,0.31807509,578.27,577.42,0.427]
[1741525716153,0.31806058,578.26,577.42,0.427]
[1741525716354,0.31806058,578.27,577.42,0.427]
[1741525717851,0.31807548,578.26,577.42,0.427]
[1741525718054,0.31807548,578.25,577.42,0.427]
[1741525718251,0.31807548,578.27,577.42,0.427]
[1741525718553,0.34575755,578.44,577.42,0.427]
[1741525718554,0.38,578.24,577.42,0.427]
[1741525718753,0.31807548,578.23,577.42,0.427]
[1741525719353,0.38,578.24,577.42,0.427]
[1741525719756,0.31814644,578.23,577.42,0.427]
[1741525724867,0.38,578.24,577.42,0.427]
[1741525725060,0.31812709,578.23,577.42,0.427]
[1741525726970,0.31808531,578.22,577.42,0.427]
[1741525727263,0.31808531,578.21,577.42,0.427]
[1741525727466,0.31808531,578.2,577.42,0.427]
[1741525727666,0.31808531,578.19,577.42,0.427]
[1741525727967,0.31808531,578.18,577.42,0.427]
[1741525730769,0.3012322,578.19,577.42,0.427]
[1741525731167,0.38,578.24,577.42,0.427]
[1741525731469,0.3180439,578.23,577.43,0.29011792]
[1741525732166,0.3180439,578.23,577.22,0.34648834]
[1741525732669,0.3180439,578.23,577.23,0.29012967]
[1741525732968,0.3180439,578.23,577.24,0.34647633]
[1741525733169,0.3180439,578.23,577.25,0.29012967]
[1741525733468,0.3180439,578.23,577.26,0.34646433]
[1741525733670,0.3180439,578.23,577.27,0.29012967]
[1741525733866,0.3180439,578.23,577.28,0.34645232]
[1741525734063,0.38,578.24,577.28,0.34645232]
[1741525734269,0.31805447,578.23,577.29,0.2901396]
[1741525734471,0.31805447,578.23,577.3,0.34644032]
[1741525734669,0.31805447,578.23,577.31,0.2901396]
[1741525735073,0.31805447,578.23,577.31,0.6931396]
[1741525735274,0.31805447,578.23,577.32,0.2901396]
[1741525735867,0.38,578.24,577.31,0.403]
[1741525737072,0.30120221,578.23,577.31,0.403]
[1741525739573,0.38,578.24,577.31,0.403]
[1741525739972,0.30118005,578.23,577.31,0.403]
[1741525742576,0.38,578.24,577.31,0.403]
[1741525742881,0.30120612,578.22,577.31,0.403]
[1741525745583,0.34575755,578.44,577.31,0.403]
[1741525745781,0.31806919,578.43,577.31,0.403]
[1741525745984,0.30120612,578.21,577.31,0.403]
[1741525746185,0.34575755,578.44,577.31,0.403]
[1741525746386,0.31809602,578.43,577.31,0.403]
[1741525746586,0.34576951,578.42,577.31,0.403]
[1741525747088,0.31809602,578.41,577.31,0.403]
[1741525747787,0.30118266,578.4,577.32,0.29025158]
[1741525747983,0.31809602,578.39,577.32,0.29025158]
[1741525748389,0.31805439,578.38,577.33,0.29019138]
[1741525748686,0.31805439,578.37,577.34,0.29019138]
[1741525748883,0.31805439,578.37,577.32,0.29019138]
[1741525749087,0.31805439,578.37,577.33,0.29019138]
[1741525749389,0.31805439,578.37,577.34,0.29019138]
[1741525749587,0.31805439,578.37,577.32,0.29019138]
[1741525749788,0.31805439,578.37,577.33,0.29019138]
[1741525749988,0.30117614,578.36,577.32,0.29019138]
[1741525750188,0.30117614,578.36,577.31,0.403]
[1741525750189,0.31805438,578.35,577.33,0.29020297]
[1741525750389,0.31805438,578.35,577.32,0.29020297]
[1741525750689,0.31805438,578.35,577.33,0.29020297]
[1741525750890,0.31805438,578.35,577.32,0.29020297]
[1741525751089,0.31805438,578.35,577.33,0.29020297]
[1741525751286,0.31805438,578.35,577.32,0.29020297]
[1741525751490,0.31805438,578.35,577.33,0.29020297]
[1741525751690,0.31805438,578.35,577.32,0.29020297]
[1741525751891,0.31805438,578.35,577.34,0.29020297]
[1741525752091,0.61922531,578.34,577.35,0.29020297]
[1741525752288,0.31805438,578.33,577.32,0.29020297]
[1741525752491,0.31805438,578.33,577.33,0.29020297]
[1741525752794,0.31805438,578.33,577.32,0.29020297]
[1741525752993,0.31805438,578.33,577.33,0.63662529]
[1741525753193,0.31805438,578.33,577.31,0.403]
[1741525753194,0.31805438,578.33,577.34,0.63661929]
[1741525753395,0.31805438,578.33,577.35,0.29020297]
[1741525757892,0.30118527,578.32,577.35,0.29020297]
[1741525758095,0.31805438,578.31,577.35,0.29020297]
[1741525758292,0.31816286,578.3,577.34,0.34641632]
[1741525758493,0.31816286,578.31,577.34,0.34641632]
[1741525759795,0.34584723,578.29,577.31,0.403]
[1741525760093,0.31816286,578.28,577.31,0.403]
[1741525760297,0.3458592,578.27,577.31,0.403]
[1741525760596,0.31816286,578.26,577.31,0.403]
[1741525760789,0.34587116,578.25,577.31,0.403]
[1741525760992,0.31816286,578.24,577.31,0.403]
[1741525761193,0.34588312,578.23,577.31,0.403]
[1741525761394,0.31816286,578.22,577.31,0.403]
[1741525761591,0.34589509,578.21,577.31,0.403]
[1741525761795,0.31816286,578.2,577.31,0.403]
[1741525761996,0.34590705,578.19,577.31,0.403]
[1741525762193,0.31816286,578.18,577.31,0.403]
[1741525762393,0.34591902,578.17,577.31,0.403]
[1741525762590,0.31816286,578.16,577.31,0.403]
[1741525762796,0.34593098,578.15,577.31,0.403]
[1741525762993,0.31832199,578.14,577.31,0.403]
[1741525763189,0.34594295,578.13,577.31,0.403]
[1741525763393,0.31832199,578.12,577.31,0.403]
[1741525763588,0.34595492,578.11,577.31,0.403]
[1741525763790,0.31831816,578.1,577.31,0.403]
[1741525763996,0.34596689,578.09,577.31,0.403]
[1741525764295,0.31831816,578.08,577.31,0.403]
[1741525764497,0.34597886,578.07,577.31,0.403]
[1741525764790,0.31831816,578.06,577.31,0.403]
[1741525764997,0.34599083,578.05,577.31,0.403]
[1741525765198,0.31831816,578.04,577.31,0.403]
[1741525765493,0.3460028,578.03,577.31,0.403]
[1741525765693,0.31831816,578.02,577.31,0.403]
[1741525765897,0.34601477,578.01,577.31,0.403]
[1741525766098,0.31831816,578.0,577.31,0.403]
[1741525766396,0.34602674,577.99,577.31,0.403]
[1741525766591,0.31831816,577.98,577.31,0.403]
[1741525767093,0.34603872,577.97,577.31,0.403]
[1741525767296,0.31831816,577.96,577.31,0.403]
[1741525767493,0.34605069,577.95,577.31,0.403]
[1741525767691,0.31831816,577.94,577.31,0.403]
[1741525767896,0.34606267,577.93,577.31,0.403]
[1741525768099,0.31831816,577.92,577.31,0.403]
[1741525769801,0.30146705,577.91,577.31,0.403]
[1741525770001,0.31831816,577.9,577.31,0.403]
[1741525770297,0.66439879,577.9,577.31,0.403]
[1741525770502,0.31831816,577.89,577.31,0.403]
[1741525770702,0.66440478,577.89,577.31,0.403]
[1741525770902,0.31831816,577.88,577.31,0.403]
[1741525772002,0.34608662,577.89,577.31,0.403]
[1741525772305,0.6645021,577.88,577.31,0.403]
[1741525772502,0.31840949,577.87,577.31,0.403]
[1741525772703,0.34610459,577.86,577.31,0.403]
[1741525772909,0.31840949,577.85,577.31,0.403]
[1741525773108,0.66452007,577.85,577.31,0.403]
[1741525773315,0.31840949,577.84,577.31,0.403]
[1741525775813,0.30149317,577.83,577.31,0.403]
[1741525776013,0.31840949,577.82,577.31,0.403]
[1741525776922,0.71440949,577.82,577.31,0.403]
[1741525777215,0.31840949,577.81,577.31,0.403]
[1741525778919,0.30149056,577.8,577.31,0.403]
[1741525779115,0.31840949,577.79,577.31,0.403]
[1741525780221,0.31836824,577.78,577.31,0.403]
[1741525780615,0.31836824,577.77,577.31,0.403]
[1741525780820,0.31836824,577.79,577.31,0.403]
[1741525781124,0.31836049,577.78,577.31,0.403]
[1741525781416,0.31836049,577.79,577.31,0.403]